lending/lending_fUSD_20240824
["ID","MTS","AMOUNT","RATE_DAILY","PERIOD"]
[335710260,1724457702771,667.54,9.904e-05,2]
[335710263,1724457784388,23890.0,9.908e-05,2]
[335710264,1724457811495,500.0,0.00027,120]
[335710265,1724457818295,3035.12551289,0.00010009,2]
[335710266,1724457834357,174.9,9.904e-05,2]
[335710276,1724457868747,535.07,8.219e-05,2]
[335710277,1724457900032,1852.42,9.904e-05,2]
[335710278,1724457944757,264.70999635,9.962e-05,2]
[335710279,1724457977420,440.53719218,0.00010009,2]
[335710281,1724458012326,155.0,0.00010009,2]
[335710282,1724458015807,274.4076759,9.888e-05,2]
[335710306,1724458062874,1000.0,9.893e-05,2]
[335710331,1724458086164,250.0,9.897e-05,2]
[335710332,1724458112526,500.0,0.00027,120]
[335710354,1724458145542,5799.49075132,0.00010009,2]
[335710421,1724458196254,156.14180465,0.00010009,2]
[335710422,1724458197528,723.63915714,0.00010009,2]
[335710424,1724458203171,25000.0,0.0001001,2]
[335710426,1724458232035,-1342.08746889,0.00010026,2]
[335710427,1724458232044,-1073.87867454,0.00010097,2]
[335710428,1724458232053,-288.9412534,0.00010097,2]
[335710429,1724458232063,-735.16554772,0.00010256,2]
[335710430,1724458232074,-1286.06670081,0.00010256,2]
[335710431,1724458232085,-3069.76775147,0.00010256,2]
[335710432,1724458232094,-150.0,0.00010299,2]
[335710433,1724458232103,-29725.80404644,0.000103,2]
[335710434,1724458232128,-992.97608767,0.000103,2]
[335710435,1724458232159,-415.09721781,0.000103,2]
[335710436,1724458232170,-308.807424,0.000103,2]
[335710437,1724458232181,-582.92504737,0.000103,2]
[335710438,1724458232191,-269.0000005,0.000103,2]
[335710439,1724458232202,-8857.72706137,0.000103,2]
[335710440,1724458232222,-1765.2517191,0.000103,2]
[335710441,1724458232233,-719.56763967,0.000103,2]
[335710442,1724458232244,-551.29288503,0.000103,2]
[335710443,1724458232255,-1351.82604549,0.000103,2]
[335710444,1724458232267,-491.54364268,0.000103,2]
[335710445,1724458232278,-2739.25162751,0.000103,2]
[335710446,1724458233562,333.77,9.9e-05,2]
[335710450,1724458238421,-1433.91078519,0.000103,2]
[335710451,1724458238433,-1756.33192736,0.000103,2]
[335710454,1724458238449,-5502.77464281,0.000103,2]
[335710456,1724458238459,-542.76570828,0.00010465,2]
[335710458,1724458238470,-62.65719172,0.00010465,2]
[335710460,1724458238480,-380.64614024,0.00010471,2]
[335710462,1724458238489,-535.07,0.00010472,2]
[335710464,1724458238499,-248.64526366,0.00010505,2]
[335710466,1724458238509,-892.47224598,0.00010505,2]
[335710468,1724458238518,-169.3694158,0.00010505,2]
[335710469,1724458238528,-336.17685718,0.00010505,2]
[335710471,1724458238538,-20273.02,0.00010566,2]
[335710473,1724458238547,-2512.7,0.00010566,2]
[335710475,1724458238556,-225.87,0.00010566,2]
[335710477,1724458238565,-150.99,0.00010566,2]
[335710478,1724458238575,-454.83956636,0.00010699,2]
[335710479,1724458238584,-155.0,0.00010699,2]
[335710481,1724458238594,-1500.0,0.00010703,2]
[335710483,1724458238603,-150.0,0.00010706,2]
[335710485,1724458238612,-155.0,0.00010799,2]
[335710487,1724458238621,-499.99,0.00010799,2]
[335710489,1724458238630,-1747.49,0.00010803,2]
[335710491,1724458238639,-501.27,0.00010803,2]
[335710492,1724458238648,-1500.0,0.00010843,2]
[335710494,1724458238659,-1500.0,0.00010856,2]
[335710496,1724458238668,-155.0,0.00010861,2]
[335710498,1724458238677,-155.0,0.00010861,2]
[335710500,1724458238687,-155.0,0.00010861,2]
[335710502,1724458238696,-210.77402829,0.00010862,2]
[335710504,1724458238705,-2500.0,0.0001087,2]
[335710506,1724458238714,-150.0,0.00010883,2]
[335710508,1724458238724,-1543.6991,0.00010899,2]
[335710510,1724458238733,-585.4773,0.00010899,2]
[335710511,1724458238743,-26556.4543,0.00010899,2]
[335710513,1724458238752,-1414.78676334,0.00010899,2]
[335710515,1724458238761,-176.84604122,0.000109,2]
[335710517,1724458238771,-7500.0,0.000109,2]
[335710519,1724458238780,-156.7847564,0.000109,2]
[335710521,1724458238792,-1152.44820198,0.000109,2]
[335710523,1724458238801,-342.05391482,0.000109,2]
[335710525,1724458238811,-286.94285339,0.000109,2]
[335710527,1724458238820,-174.90327436,0.000109,2]
[335710529,1724458238830,-3034.03842515,0.00010949,2]
[335710531,1724458238840,-4244.46687697,0.00010956,2]
[335710533,1724458238850,-159.24688271,0.00010956,2]
[335710535,1724458238860,-966.32,0.00010958,2]
[335710537,1724458238870,-159.94,0.00010959,2]
[335710539,1724458238881,-153.92,0.00010959,2]
[335710541,1724458238890,-193.35135673,0.00010971,2]
[335710543,1724458238899,-1157202.78304343,0.0001098,2]
[335710545,1724458238911,-7266.08921481,0.0001098,2]
[335710547,1724458238922,-345.0,0.0001098,2]
[335710550,1724458238937,-3997.39999994,0.0001098,2]
[335710552,1724458238948,-651.2,0.0001098,2]
[335710554,1724458238959,-1479.70572838,0.0001098,2]
[335710557,1724458238974,-458.59831038,0.0001098,2]
[335710559,1724458238985,-1908.71029907,0.0001098,2]
[335710561,1724458238996,-26212.30646997,0.0001098,2]
[335710563,1724458239007,-339.52672641,0.0001098,2]
[335710661,1724458240118,-96236.91431132,0.0001098,2]
[335710662,1724458240225,-1984.32177349,0.0001098,2]
[335710928,1724458242848,-155.0,0.00010799,2]
[335710930,1724458242859,-1462.3920438,0.0001098,2]
[335710944,1724458242983,-164976.06194829,0.0001098,2]
[335710947,1724458242993,-4157.69845937,0.00010981,2]
[335710949,1724458243003,-2081095.8388017,0.00010982,2]
[335710950,1724458243012,-272.2768446,0.00010982,2]
[335710952,1724458243021,-272.2768446,0.00010982,2]
[335710955,1724458243030,-4157.69845937,0.00010985,2]
[335710957,1724458243040,-61785.975065,0.00010986,2]
[335710959,1724458243049,-272.2768446,0.00010986,2]
[335710961,1724458243058,-193.35135673,0.00010986,2]
[335710963,1724458243067,-846.89779478,0.00010987,2]
[335710965,1724458243076,-2081095.8388017,0.00010988,2]
[335710967,1724458243085,-534.2470082,0.00010989,2]
[335710969,1724458243095,-156.36720659,0.00010989,2]
[335710971,1724458243104,-1420.6154006,0.0001099,2]
[335710973,1724458243113,-1420.6154006,0.0001099,2]
[335710975,1724458243121,-1420.6154006,0.0001099,2]
[335710977,1724458243131,-846.89779478,0.00010991,2]
[335710979,1724458243140,-61785.975065,0.00010991,2]
[335710981,1724458243149,-966.32,0.00010992,2]
[335710983,1724458243158,-534.2470082,0.00010994,2]
[335710985,1724458243168,-4157.69845937,0.00010994,2]
[335710987,1724458243178,-534.2470082,0.00010996,2]
[335710989,1724458243187,-193.35135673,0.00010996,2]
[335710991,1724458243197,-61785.975065,0.00010996,2]
[335710992,1724458243205,-4157.69845937,0.00010996,2]
[335710993,1724458243214,-7224.96713967,0.00010997,2]
[335710994,1724458243223,-404228.13330882,0.00010997,2]
[335710995,1724458243232,-272.2768446,0.00010998,2]
[335710996,1724458243241,-3365.0213606,0.00010998,2]
[335710997,1724458243250,-534.2470082,0.00010998,2]
[335710998,1724458243259,-193.35135673,0.00010998,2]
[335710999,1724458243268,-404228.13330882,0.00010998,2]
[335711000,1724458243277,-193.35135673,0.00010999,2]
[335711001,1724458243286,-9880.06593372,0.00010999,2]
[335711002,1724458243295,-500.0,0.00010999,2]
[335711003,1724458243304,-500.0,0.00010999,2]
[335711004,1724458243314,-500.0,0.00010999,2]
[335711005,1724458243324,-509.23574389,0.00010999,2]
[335711006,1724458243333,-966.32,0.00010999,2]
[335711007,1724458243342,-966.32,0.00010999,2]
[335711008,1724458243351,-966.32,0.00010999,2]
[335711010,1724458243360,-966.32,0.00010999,2]
[335711012,1724458243369,-966.32,0.00010999,2]
[335711014,1724458243378,-966.32,0.00010999,2]
[335711016,1724458243388,-966.32,0.00010999,2]
[335711018,1724458243397,-966.32,0.00010999,2]
[335711020,1724458243406,-966.32,0.00010999,2]
[335711022,1724458243415,-966.32,0.00010999,2]
[335711024,1724458243426,-966.32,0.00010999,2]
[335711026,1724458243435,-966.32,0.00010999,2]
[335711028,1724458243444,-966.32,0.00010999,2]
[335711029,1724458243453,-966.32,0.00010999,2]
[335711031,1724458243462,-966.32,0.00010999,2]
[335711033,1724458243471,-966.32,0.00010999,2]
[335711036,1724458243480,-966.32,0.00010999,2]
[335711038,1724458243490,-966.32,0.00010999,2]
[335711041,1724458243500,-966.32,0.00010999,2]
[335711044,1724458243509,-966.32,0.00010999,2]
[335711046,1724458243518,-966.32,0.00010999,2]
[335711048,1724458243527,-966.32,0.00010999,2]
[335711050,1724458243535,-500.0,0.00010999,2]
[335711052,1724458243544,-500.0,0.00010999,2]
[335711054,1724458243553,-532.96,0.00010999,2]
[335711056,1724458243563,-599.51,0.00010999,2]
[335711057,1724458243571,-150.0,0.00010999,2]
[335711059,1724458243580,-184.80311079,0.00010999,2]
[335711061,1724458243590,-500.0,0.00010999,2]
[335711063,1724458243599,-500.0,0.00010999,2]
[335711065,1724458243608,-177.5,0.00010999,2]
[335711067,1724458243617,-500.0,0.00010999,2]
[335711069,1724458243626,-500.0,0.00010999,2]
[335711071,1724458243637,-500.0,0.00010999,2]
[335711073,1724458243646,-189.36212033,0.00010999,2]
[335711075,1724458243656,-500.0,0.00010999,2]
[335711077,1724458243665,-500.0,0.00010999,2]
[335711079,1724458243674,-500.0,0.00010999,2]
[335711081,1724458243684,-500.0,0.00010999,2]
[335711083,1724458243693,-566.47335138,0.00010999,2]
[335711085,1724458243703,-500.0,0.00010999,2]
[335711087,1724458243712,-500.0,0.00010999,2]
[335711089,1724458243722,-500.0,0.00010999,2]
[335711091,1724458243731,-618.57859397,0.00010999,2]
[335711093,1724458243740,-566.0,0.00011,2]
[335711095,1724458243750,-1173817.94927483,0.00011,2]
[335711097,1724458243761,-316.06940488,0.00011,2]
[335711100,1724458243777,-1387.96978456,0.00011,2]
[335711102,1724458243789,-576.41379948,0.00011,2]
[335711104,1724458243802,-1465.11600172,0.00011,2]
[335711106,1724458243820,-1149.44775671,0.00011,2]
[335711109,1724458243831,-608.822415,0.00011,2]
[335711111,1724458243842,-289.34499,0.00011,2]
[335711113,1724458243852,-407.97,0.00011,2]
[335711340,1724458246174,-633.41164026,0.00010999,2]
[335711341,1724458246184,-2823.97217248,0.00011,2]
[335711343,1724458246228,-656.5,0.00011,2]
[335712116,1724458273161,1050.0,0.0001,2]
[335712118,1724458400415,514.19,8.77e-05,2]
[335712120,1724458594487,454.83956636,0.00010009,2]
[335712121,1724458802727,3131.15,0.00025,60]
[335712125,1724458869119,500.0,0.00027,120]
[335712126,1724458877664,500.0,0.00027,120]
[335712127,1724458885437,500.0,0.00027,120]
[335712128,1724458895008,500.0,0.00027,120]
[335712129,1724458904220,500.0,0.00027,120]
[335712130,1724458905901,155.0,0.00010009,2]
[335712131,1724458912621,500.0,0.00027,120]
[335712132,1724458917271,488.48,8.219e-05,2]
[335712134,1724458935900,155.0,0.00010009,2]
[335712135,1724458936976,500.0,0.00027,120]
[335712136,1724458945572,500.0,0.00027,120]
[335712137,1724459003882,166.88,9.95e-05,2]
[335712160,1724459060640,500.0,0.0001,2]
[335712161,1724459066169,800.0,9.986e-05,2]
[335712164,1724459184691,12551.3106702,0.00010009,2]
[335712178,1724459278099,1724.55584436,0.0001,2]
[335712209,1724459365030,150.0,0.00010009,2]
[335712210,1724459365050,150.0,0.00010009,2]
[335712211,1724459365070,150.0,0.00010009,2]
[335712212,1724459365090,145.49407405,0.00010009,2]
[335712219,1724459382530,150.0,0.0001,2]
[335712220,1724459382552,158.56296123,0.0001,2]
[335712221,1724459389596,150.0,0.00010009,2]
[335712222,1724459389617,150.0,0.00010009,2]
[335712223,1724459389638,150.0,0.00010009,2]
[335712224,1724459389658,150.0,0.00010009,2]
[335712225,1724459389678,123.63700054,0.00010009,2]
[335712226,1724459401470,150.0,0.00010009,2]
[335712227,1724459401490,150.0,0.00010009,2]
[335712228,1724459401512,150.0,0.00010009,2]
[335712229,1724459401532,150.0,0.00010009,2]
[335712230,1724459401552,150.0,0.00010009,2]
[335712231,1724459401573,150.0,0.00010009,2]
[335712232,1724459401593,150.0,0.00010009,2]
[335712233,1724459401613,150.0,0.00010009,2]
[335712234,1724459401635,150.0,0.00010009,2]
[335712235,1724459401657,150.0,0.00010009,2]
[335712236,1724459401677,150.0,0.00010009,2]
[335712237,1724459401697,150.0,0.00010009,2]
[335712238,1724459401716,150.0,0.00010009,2]
[335712239,1724459401737,1084.58196902,0.00010009,2]
[335712240,1724459407924,150.0,0.0001,2]
[335712241,1724459407945,150.0,0.0001,2]
[335712242,1724459407965,150.0,0.0001,2]
[335712243,1724459407986,150.0,0.0001,2]
[335712244,1724459408006,150.0,0.0001,2]
[335712245,1724459408183,150.0,0.0001,2]
[335712246,1724459408203,150.0,0.0001,2]
[335712247,1724459413409,150.0,0.00010009,2]
[335712248,1724459413429,180.86892541,0.00010009,2]
[335712249,1724459413452,808.25284019,0.00010009,2]
[335712250,1724459430830,174.88,9.978e-05,2]
[335712254,1724459432318,-154.26,0.00010087,2]
[335712255,1724459432328,-155.43568768,0.00010097,2]
[335712256,1724459432338,-4198.21786108,0.00010097,2]
[335712257,1724459432347,-200.0,0.0001019,2]
[335712258,1724459432356,-193.75,0.0001046,2]
[335712259,1724459432365,-300.0,0.0001047,2]
[335712260,1724459432374,-453.76056783,0.00010471,2]
[335712261,1724459432393,-157.06540395,0.00010471,2]
[335712262,1724459432403,-488.48,0.00010478,2]
[335712263,1724459432412,-155.0,0.00010505,2]
[335712264,1724459432422,-155.29152429,0.00010505,2]
[335712265,1724459432431,-6287.88,0.00010544,2]
[335712266,1724459432441,-499.99,0.00010566,2]
[335712267,1724459432450,-249.55432365,0.00010699,2]
[335712268,1724459432460,-499.99,0.00010713,2]
[335712269,1724459432471,-155.0,0.00010713,2]
[335712270,1724459432480,-167.54,0.00010757,2]
[335712271,1724459432490,-10000.0,0.000108,2]
[335712272,1724459432499,-454.83956636,0.00010862,2]
[335712273,1724459432509,-229.11927,0.0001089,2]
[335712274,1724459432519,-1604.1287,0.00010899,2]
[335712275,1724459432528,-150.0,0.00010899,2]
[335712276,1724459432537,-948.265,0.000109,2]
[335712277,1724459432546,-28401.96553056,0.000109,2]
[335712278,1724459432563,-295.4294,0.000109,2]
[335712280,1724459438387,-1954.87549614,0.000109,2]
[335712281,1724459438447,-1106.44534,0.000109,2]
[335712283,1724459438851,-22978.8674333,0.000109,2]
[335712284,1724459438860,-176.84604122,0.000109,2]
[335712286,1724459438869,-2500.0,0.000109,2]
[335712288,1724459438878,-3131.99226027,0.000109,2]
[335712298,1724459440521,-475.58254525,0.000109,2]
[335712299,1724459440534,-3892.42519448,0.000109,2]
[335712300,1724459440544,-358.75397888,0.000109,2]
[335712301,1724459440553,-2304.89640396,0.000109,2]
[335712302,1724459440562,-333.79050056,0.000109,2]
[335712303,1724459440572,-893.78316594,0.000109,2]
[335712314,1724459440747,-1291.08113601,0.000109,2]
[335712316,1724459440759,-306.57499997,0.000109,2]
[335712318,1724459440770,-2185.8121537,0.000109,2]
[335712320,1724459440783,-315.7526793,0.000109,2]
[335712568,1724459443260,-1464.06406546,0.000109,2]
[335712570,1724459443273,-1723.80973372,0.000109,2]
[335712576,1724459443317,-833.87987711,0.000109,2]
[335712578,1724459443328,-448.95942964,0.000109,2]
[335712584,1724459443375,-694.5375725,0.000109,2]
[335712597,1724459443487,-3939.92439593,0.000109,2]
[335712599,1724459443499,-935.898057,0.000109,2]
[335712605,1724459443545,-421.69549313,0.000109,2]
[335712607,1724459443556,-8885.17744223,0.000109,2]
[335712609,1724459443565,-3410.31470011,0.000109,2]
[335712611,1724459443576,-1364.2199562,0.000109,2]
[335712831,1724459446170,-7958.54621348,0.000109,2]
[335712832,1724459446180,-1298.23330788,0.00010949,2]
[335712833,1724459446190,-150.99,0.00010959,2]
[335712834,1724459446201,-500.0,0.00010999,2]
[335712835,1724459446211,-305.879378,0.00010999,2]
[335712836,1724459446220,-235.19861104,0.00010999,2]
[335712837,1724459446231,-173.11725607,0.00010999,2]
[335712838,1724459446241,-558.0,0.00011,2]
[335712839,1724459446250,-8287.62303118,0.00011,2]
[335712840,1724459446262,-1775.20023849,0.00011,2]
[335712841,1724459446273,-7767.81612531,0.00011,2]
[335712842,1724459446292,-577.10546224,0.00011,2]
[335712843,1724459446307,-13109.52489308,0.00011,2]
[335712844,1724459446318,-50000.88358063,0.00011,2]
[335712845,1724459446403,-300.0,0.00011,2]
[335712846,1724459446461,-657.54812149,0.00011,2]
[335712935,1724459477448,150.0,0.0001,2]
[335712936,1724459477470,150.0,0.0001,2]
[335712937,1724459477492,150.0,0.0001,2]
[335712938,1724459477513,550.0,0.0001,2]
[335712939,1724459490921,1000.0,0.0001,2]
[335712940,1724459500251,1000.0,0.0001,2]
[335712941,1724459506703,1000.0,0.0001,2]
[335712942,1724459513668,1000.0,0.0001,2]
[335712943,1724459520542,1000.0,0.0001,2]
[335712951,1724459525786,500.0,0.0001,2]
[335712952,1724459530732,590.48,0.0001,2]
[335712953,1724459559780,3580.19335786,0.00027,120]
[335712954,1724459611562,470.86,8.219e-05,2]
[335712957,1724459705607,171.2,9.956e-05,2]
[335712963,1724459955837,233.36,9.93e-05,2]
[335712964,1724459977052,454.83956636,0.00010009,2]
[335712965,1724459986136,320.0,9.928e-05,2]
[335712966,1724460063674,166.88,9.943e-05,2]
[335712967,1724460075542,1050.0,0.0001,2]
[335712968,1724460087150,689.0,0.00025,90]
[335712969,1724460112590,600.08685917,0.00025,60]
[335712970,1724460142700,1500.0,0.00027,120]
[335712971,1724460154781,765.0,0.00027,120]
[335712972,1724460155563,447.31,8.219e-05,2]
[335712973,1724460171687,640.0,9.927e-05,2]
[335712975,1724460443625,264.61688049,0.00010009,2]
[335712976,1724460464718,233.4,9.922e-05,2]
[335712983,1724460583085,26173.46412306,0.00010009,2]
[335712991,1724460631500,-360.0,0.00010013,2]
[335712992,1724460631510,-447.31,0.00010472,2]
[335712993,1724460631522,-198.03150836,0.00010505,2]
[335712994,1724460631531,-300.0,0.00010698,2]
[335712995,1724460631540,-963.9540375,0.00010699,2]
[335712996,1724460631550,-963.9540375,0.00010699,2]
[335712997,1724460631559,-523.14136037,0.00010713,2]
[335712998,1724460631568,-1074.67923523,0.00010713,2]
[335712999,1724460631577,-300.0,0.00010725,2]
[335713000,1724460631586,-150.0,0.0001074,2]
[335713001,1724460631596,-748.70430875,0.00010744,2]
[335713002,1724460631605,-515.81013922,0.00010754,2]
[335713003,1724460631615,-499.99,0.00010754,2]
[335713004,1724460631625,-1500.0,0.00010772,2]
[335713005,1724460631634,-150.0,0.00010796,2]
[335713006,1724460631645,-287.26,0.00010799,2]
[335713007,1724460631654,-150.0,0.00010799,2]
[335713008,1724460631663,-14480.08122276,0.000108,2]
[335713009,1724460631672,-150.99,0.000108,2]
[335713010,1724460631681,-769.51680333,0.00010852,2]
[335713011,1724460631690,-297.48958849,0.00010861,2]
[335713012,1724460631700,-174.07142396,0.00010862,2]
[335713013,1724460631709,-258.52268374,0.00010862,2]
[335713014,1724460631718,-155.0,0.00010888,2]
[335713015,1724460631727,-298.64010758,0.00010888,2]
[335713016,1724460631737,-203.44849149,0.0001089,2]
[335713017,1724460631746,-2583.33333,0.0001089,2]
[335713018,1724460631755,-7500.0,0.00010897,2]
[335713019,1724460631764,-2500.0,0.00010897,2]
[335713020,1724460631773,-1500.0,0.00010898,2]
[335713021,1724460631782,-182.05251414,0.00010898,2]
[335713022,1724460631791,-182.05251414,0.00010899,2]
[335713023,1724460631800,-174.83539434,0.00010899,2]
[335713024,1724460631809,-531.39122984,0.00010899,2]
[335713025,1724460631818,-3237.1381,0.000109,2]
[335713026,1724460631827,-606.7711,0.000109,2]
[335713027,1724460631836,-1621.6454,0.000109,2]
[335713028,1724460631846,-1636.3138,0.000109,2]
[335713029,1724460631855,-500.0,0.000109,2]
[335713030,1724460631864,-556.3111,0.000109,2]
[335713031,1724460631873,-1000.0,0.000109,2]
[335713032,1724460631883,-182.05251414,0.000109,2]
[335713033,1724460631891,-1500.0,0.00010938,2]
[335713034,1724460631901,-155.84785804,0.00010949,2]
[335713035,1724460631910,-165.15,0.00010959,2]
[335713036,1724460631920,-150.0,0.00010959,2]
[335713037,1724460631929,-2000.0,0.00010959,2]
[335713038,1724460631938,-250.0,0.00010959,2]
[335713039,1724460631947,-244.87,0.00010959,2]
[335713040,1724460631958,-204.06,0.00010959,2]
[335713041,1724460631967,-170.05,0.00010959,2]
[335713042,1724460631976,-850.29,0.00010959,2]
[335713043,1724460631986,-200.0,0.00010973,2]
[335713044,1724460631995,-580.0,0.00010986,2]
[335713045,1724460632004,-783.0,0.00010986,2]
[335713046,1724460632013,-109165.0,0.00010986,2]
[335713047,1724460632022,-150.0,0.00010991,2]
[335713048,1724460632031,-155.0,0.00010993,2]
[335713049,1724460632040,-167.25085888,0.00010994,2]
[335713050,1724460632050,-500.0,0.00010995,2]
[335713051,1724460632058,-500.0,0.00010995,2]
[335713052,1724460632068,-1788.3,0.00010996,2]
[335713053,1724460632078,-500.0,0.00010996,2]
[335713054,1724460632088,-1935.22,0.00010996,2]
[335713055,1724460632097,-1806.94,0.00010996,2]
[335713056,1724460632109,-1758.15,0.00010996,2]
[335713057,1724460632120,-1303.34,0.00010996,2]
[335713058,1724460632129,-2297.57,0.00010996,2]
[335713059,1724460632139,-4467.17,0.00010996,2]
[335713060,1724460632150,-4467.17,0.00010996,2]
[335713061,1724460632159,-33120.01,0.00010996,2]
[335713062,1724460632168,-157.056635,0.00010996,2]
[335713063,1724460632177,-644.17,0.00010996,2]
[335713064,1724460632187,-5964.14,0.00010996,2]
[335713065,1724460632196,-5964.14,0.00010996,2]
[335713066,1724460632204,-500.0,0.00010996,2]
[335713067,1724460632213,-500.0,0.00010996,2]
[335713068,1724460632222,-500.0,0.00010996,2]
[335713069,1724460632231,-500.0,0.00010996,2]
[335713070,1724460632240,-500.0,0.00010996,2]
[335713071,1724460632248,-500.0,0.00010996,2]
[335713072,1724460632257,-500.0,0.00010996,2]
[335713073,1724460632266,-500.0,0.00010996,2]
[335713074,1724460632274,-500.0,0.00010996,2]
[335713075,1724460632283,-500.0,0.00010996,2]
[335713076,1724460632292,-500.0,0.00010996,2]
[335713077,1724460632301,-500.0,0.00010996,2]
[335713078,1724460632310,-587.24,0.00010996,2]
[335713079,1724460632319,-587.24,0.00010996,2]
[335713080,1724460632328,-1864.46,0.00010996,2]
[335713081,1724460632337,-1864.46,0.00010996,2]
[335713082,1724460632346,-888.66,0.00010996,2]
[335713083,1724460632356,-888.66,0.00010996,2]
[335713084,1724460632366,-1993.02,0.00010996,2]
[335713085,1724460632379,-1993.02,0.00010996,2]
[335713086,1724460632392,-1266.41,0.00010996,2]
[335713087,1724460632404,-1266.41,0.00010996,2]
[335713088,1724460632416,-1949.83,0.00010996,2]
[335713089,1724460632428,-1949.83,0.00010996,2]
[335713090,1724460632438,-544.4,0.00010996,2]
[335713091,1724460632448,-5315.8,0.00010996,2]
[335713092,1724460632460,-5315.8,0.00010996,2]
[335713093,1724460632472,-500.0,0.00010996,2]
[335713094,1724460632484,-593.91,0.00010996,2]
[335713095,1724460632497,-500.0,0.00010996,2]
[335713096,1724460632511,-500.0,0.00010996,2]
[335713097,1724460632527,-500.0,0.00010996,2]
[335713098,1724460632539,-1233.95,0.00010996,2]
[335713099,1724460632551,-1233.95,0.00010996,2]
[335713100,1724460632563,-4249.16,0.00010996,2]
[335713101,1724460632576,-4249.16,0.00010996,2]
[335713102,1724460632587,-7055.15,0.00010996,2]
[335713103,1724460632599,-7055.15,0.00010996,2]
[335713104,1724460632612,-1056.87,0.00010996,2]
[335713105,1724460632626,-1056.87,0.00010996,2]
[335713106,1724460632637,-3676.98,0.00010996,2]
[335713107,1724460632649,-3676.98,0.00010996,2]
[335713108,1724460632660,-2374.0,0.00010996,2]
[335713109,1724460632672,-2374.0,0.00010996,2]
[335713110,1724460632684,-1384.29,0.00010996,2]
[335713111,1724460632696,-2937.4,0.00010996,2]
[335713112,1724460632706,-2937.4,0.00010996,2]
[335713113,1724460632716,-2297.96,0.00010996,2]
[335713114,1724460632726,-2297.96,0.00010996,2]
[335713115,1724460632738,-500.0,0.00010996,2]
[335713116,1724460632748,-500.0,0.00010996,2]
[335713117,1724460632760,-2492.22,0.00010996,2]
[335713118,1724460632772,-2492.22,0.00010996,2]
[335713119,1724460632783,-6834.79,0.00010996,2]
[335713120,1724460632795,-6834.79,0.00010996,2]
[335713121,1724460632807,-817.42,0.00010996,2]
[335713122,1724460632818,-500.0,0.00010996,2]
[335713123,1724460632831,-500.0,0.00010996,2]
[335713124,1724460632842,-557.76,0.00010996,2]
[335713125,1724460632854,-557.76,0.00010996,2]
[335713126,1724460632868,-2766.71,0.00010996,2]
[335713127,1724460632878,-2766.71,0.00010996,2]
[335713128,1724460632888,-478.24,0.00010996,2]
[335713129,1724460632899,-500.0,0.00010996,2]
[335713130,1724460632909,-500.0,0.00010996,2]
[335713131,1724460632921,-500.0,0.00010996,2]
[335713132,1724460632932,-331.06487163,0.00010996,2]
[335713133,1724460632947,-500.0,0.00010996,2]
[335713134,1724460632959,-500.0,0.00010996,2]
[335713135,1724460632971,-500.0,0.00010996,2]
[335713136,1724460632982,-500.0,0.00010996,2]
[335713137,1724460632991,-492.61379302,0.00010996,2]
[335713138,1724460633004,-357.46551384,0.00010996,2]
[335713139,1724460633015,-212.55946011,0.00010997,2]
[335713140,1724460633025,-500.0,0.00010997,2]
[335713141,1724460633037,-500.0,0.00010997,2]